{"text_format":"1","workbook":"xlsx","n_sheets":3,"sheets":["01a_Abstimmbr_Passerelle","01b_Begründung_Justif","dropdown"],"not_rendered":{"charts":0,"images":1,"macros":0,"external_links":1,"defined_names":1,"comments":0,"pivot_tables":0},"unopened":[],"bounds":{"document_bytes":16777216,"sheet_cells":100000,"rows_first":2000,"rows_last":500,"rows_between":2000,"halvings":0,"cell_chars":16384,"cell_head_chars":4096},"cells_cut":0,"cells_raw":0,"read":"whole","date_system":"1900"}

{"sheet":"01a_Abstimmbr_Passerelle","index":0,"n_rows":94,"n_cols":10,"rows_kept":94,"cut":false,"hidden":false,"merged":[[3,1,3,2],[3,3,3,5],[4,1,4,2],[4,3,4,5],[5,1,5,2],[5,3,5,5],[6,1,6,2],[6,3,6,5],[7,1,7,2],[7,3,7,5],[8,1,8,2],[8,3,8,5],[9,1,9,2],[9,3,9,5],[10,1,10,2],[10,3,10,5],[12,1,12,2],[12,3,12,5],[11,1,11,2],[11,3,11,5],[13,3,13,5],[16,7,16,9],[61,1,61,2],[62,1,62,2],[64,1,64,2],[66,1,66,2],[73,1,73,2],[79,1,79,2],[81,1,81,2],[13,1,13,2]]}
["01a_Abstimmbr_Passerelle",null,null,null,null,null,null,null,null,"Version 01.02.2024"]
[null,"01a_Abstimmbrücke FIBU-BEBU auf Ist-Kostenbasis im Vollkostenverfahren"]
[null,"in Anlehnung an REKOLE®"]
[null,"Name Leistungserbringer (juristische Einheit)",{"$error":"#N/A"}]
[null,"UID (CHE-xxx.xxx.xxx)",{"$error":"#N/A"},""]
[null,"Mehrere Standorte: ja/nein?",{"$error":"#N/A"},"[bitte wählen]"]
[null,"BUR-Nummer (wenn 1 Standort)",{"$error":"#N/A"}]
[null,"Datenjahr",{"$error":"#N/A"},""]
[null,"Version ITAR_K",{"$error":"#N/A"},"[bitte wählen]"]
[null,"Version SwissDRG",{"$error":"#N/A"},"[bitte wählen]"]
[null,"Version TARPSY Grouper",{"$error":"#N/A"},"[bitte wählen]"]
[null,"Version ST Reha Grouper",{"$error":"#N/A"},"[bitte wählen]"]
[null,"Prüfung durch Kanton am [TT.MM.JJJJ]",{"$error":"#N/A"},""]
[null,"Kontaktperson Kanton (E-Mail)",{"$error":"#N/A"},""]
[null,"Wichtig: Geben Sie Ihre Daten in den blauen Feldern ein."]
[]
[null,"KTO","AUFWANDS- BZW. ERTRAGSKONTEN","FIBU","ABGRENZUNG","BEBU",null,"Abstimmungshilfe zu ITAR_K",{"$error":"#N/A"},{"$error":"#N/A"}]
[]
[null,60,"Erlöse aus med., pfleg. und therap. Leistungen\n(s. Anm. [1] weiter unten)",null,null,{"$f":"D19+E19","v":0},null,"Erträge"]
[null,61,"Ärztliche Einzelleistungen",null,null,{"$f":"D20+E20","v":0},null,"BeBu Zeitrechnung (Kostenarten)",null,{"$f":"F31","v":0}]
[null,62,"Übrige Spitaleinzelleistungen ",null,null,0,null,"- Erlöse 68 als Kostenminderung [2]"]
[null,65,"Übrige Erträge aus Leistungen an Patienten",null,null,0,null,"- Nebenbetriebe"]
[null,66,"Finanzertrag",null,null,0,null,"+/- Überliegersaldo"]
[null,67,"Bestandesänderungen ",null,null,0,null,"+/- ∆ Storno/Refaktura Vorperiode"]
[null,68,"Erträge aus Leistungen an Personal und Dritte",null,null,0,null,"= KTR-Summe",null,{"$f":"SUM(J20:J24)","v":0}]
[null,69,"Beiträge und Subventionen",null,null,0,null,"Summe KTR-Ausweis [3]"]
[null,77,"Steuern",null,null,0,null,"Differenz",null,{"$f":"J25-J26","v":0}]
[null,78,"Ausserordentlicher Ertrag",null,{"$f":"-D28","v":0}]
[null,79,"Betriebsfremder Ertrag",null,{"$f":"-D29","v":0}]
[]
[null,"TOTAL ERTRÄGE",null,{"$f":"SUM(D19:D29)","v":0},{"$f":"SUM(E19:E29)","v":0},{"$f":"SUM(F19:F29)","v":0}]
[null,null,null,null,null,null,null,"Kosten"]
[null,30,"Lohnaufwand ",null,null,{"$f":"D33+E33","v":0},null,"BeBu Zeitrechnung (Kostenarten)",null,{"$f":"F80","v":0}]
[null,37,"Sozialversicherungsaufwand",null,null,{"$f":"D34+E34","v":0},null,"- Erlöse 68 als Kostenminderung [4]"]
[null,380,"Arzthonorare, Spitalärzte",null,null,0,null,"- Nebenbetriebe [5]"]
[null,381,"Arzthonorare, Belegärzte",null,null,0,null,"+/- Überliegersaldo [6]"]
[null,39,"Übriger Personalaufwand",null,null,0,null,"= KTR-Summe",null,{"$f":"SUM(J33:J36)","v":0}]
[null,40,"Medizinischer Bedarf (exkl. Arzthonorare 4051/4052)",null,null,{"$f":"D38+E38","v":0},null,"Summe KTR-Ausweis [7]"]
[null,405,"nicht sozialversicherungspflichtige Arzthonorare",null,null,{"$f":"D39+E39","v":0},null,"Differenz",null,{"$f":"J37-J38","v":0}]
[null,41,"Lebensmittelaufwand",null,null,0]
[null,42,"Haushaltaufwand",null,null,0]
[null,43,"Unterhalt und Reparaturen",null,null,0]
[null,440,"Investitionen (<VKL-Wert)",null,null,0]
[null,442,"Abschreibungen (gemäss VKL)",null,null,0]
[null,443,"Mietzinse (<VKL-Wert)",null,null,0]
[null,444,"Übrige Mietzinse nach VKL (inkl. operatives Leasing)",null,null,0]
[null,448,"Kalkulatorische Verzinsung des Anlagevermögens (VKL)",null,null,0,null,"Anlagenutzungskosten (gem. VKL)",null,{"$f":"F44+F46+F47","v":0}]
[null,45,"Aufwand für Energie und Wasser",null,null,0]
[null,460,"Kreditzinsaufwand",null,{"$f":"-D49","v":0},0]
[null,461,"Darlehenszinsaufwand",null,{"$f":"-D50","v":0},0]
[null,463,"Hypothekarzinsaufwand (REK 05_006)",null,{"$f":"-D51","v":0},0]
[null,468,"Kalk. Verzinsung des Umlaufvermögens gem. REKOLE",null,null,0]
[null,469,"Übriger Zinsaufwand",null,null,0]
[null,47,"Verwaltungs- und Informatikaufwand",null,null,0]
[null,48,"Übriger patientenbezogener Aufwand ",null,null,0]
[null,49,"Übriger nicht patientenbezogener Aufwand ",null,null,0]
[null,"70-76",null,null,null,0]
[null,77,"Steuern",null,null,0]
[null,78,"Ausserordentlicher Aufwand",null,{"$f":"-D59","v":0},0]
[null,79,"Betriebsfremder Aufwand",null,{"$f":"-D60","v":0},0]
[]
[null,"Total Einzelkosten",{"$error":"#N/A"},{"$f":"D35+D36+D38+D39+D55","v":0},{"$f":"E35+E36+E38+E39+E55","v":0},{"$f":"F35+F36+F38+F39+F55","v":0}]
[null,"Total Gemeinkosten",{"$error":"#N/A"},{"$f":"SUM(D33:D60)-D62","v":0},{"$f":"SUM(E33:E60)-E62","v":0},{"$f":"SUM(F33:F60)-F62","v":0}]
[]
[null,"TOTAL KOSTEN (ANK VKL)",{"$error":"#N/A"},{"$f":"SUM(D33:D60)","v":0},{"$f":"SUM(E33:E60)","v":0},{"$f":"SUM(F33:F60)","v":0}]
[]
[null,"ERGEBNIS (ANK VKL)",{"$error":"#N/A"},{"$f":"D31-D65","v":0},{"$f":"E31-E65","v":0},{"$f":"F31-F65","v":0}]
[]
[null,"Zusätzlicher Ausweis der ANK nach REKOLE"]
[null,442,"Abschreibungen nach REKOLE",null,null,{"$f":"D70+E70","v":0}]
[null,444,"Übrige Mietzinse nach REKOLE (inkl. operatives Leasing)",null,null,0]
[null,448,"Kalkulatorische Verzinsung des Anlagevermögens nach REKOLE",null,null,{"$f":"D72+E72","v":0}]
[]
[null,"TOTAL ANK REKOLE",{"$error":"#N/A"},{"$f":"SUM(D70:D72)","v":0},{"$f":"SUM(E70:E72)","v":0},{"$f":"SUM(F70:F72)","v":0}]
[]
[null,null,"   davon Nebenbetriebe [8]"]
[null,null,"   davon Überliegerkorrektur stationär Vorjahr [9]"]
[null,null,"   davon Überliegerkorrektur stationär laufendes Jahr [10]"]
[]
[null,"TOTAL KOSTEN (ANK REKOLE)",{"$error":"#N/A"},{"$f":"D65-D44-D46+D70+D71","v":0},{"$f":"E65-E44-E46-E47+E70+E71+E72","v":0},{"$f":"F65-F44-F46-F47+F70+F71+F72","v":0}]
[]
[null,"ERGEBNIS (ANK REKOLE)",{"$error":"#N/A"},{"$f":"D31-D80","v":0},{"$f":"E31-E80","v":0},{"$f":"F31-F80","v":0}]
[]
[null,"Anmerkungen:"]
[null,"[1] Die Erlösminderungen aus Konto 609 werden im Konto 60 in Abzug gebracht und ausgewiesen.\n"]
[null,"[2] Hier sind die Werte aus ITAR_K, Tabellenblatt ITAR_K Gesamtansicht, Zelle E16 einzutragen.\n"]
[null,"[3] Hier sind die Werte aus ITAR_K, Tabellenblatt KTR-Ausweis Gesamtansicht, Zelle DE21 einzutragen."]
[null,"[4] Hier sind die Werte aus ITAR_K, Tabellenblatt ITAR_K Gesamtansicht, Zelle E16 einzutragen.\n"]
[null,"[5] Hier sind die Werte aus ITAR_K, Tabellenblatt ITAR_K Gesamtansicht, Zelle F19 einzutragen."]
[null,"[6] Hier ist die Summe aus ITAR_K, Tabellenblatt ITAR_K Gesamtansicht, Zellen G19+H19 einzutragen."]
[null,"[7] Hier sind die Werte aus ITAR_K, Tabellenblatt KTR-Ausweis Gesamtansicht, Zelle DE80 einzutragen."]
[null,"[8] Wert bitte mit positivem Vorzeichen erfassen."]
[null,"[9] Wert bitte mit positivem Vorzeichen erfassen."]
[null,"[10] Wert bitte mit negativem Vorzeichen erfassen."]

{"sheet":"01b_Begründung_Justif","index":1,"n_rows":148,"n_cols":6,"rows_kept":148,"cut":false,"hidden":false,"merged":[[6,0,6,1],[6,2,6,4],[7,0,7,1],[7,2,7,4],[8,0,8,1],[8,2,8,4],[3,0,3,1],[3,2,3,4],[4,0,4,1],[4,2,4,4],[5,0,5,1],[5,2,5,4],[13,0,13,1],[13,2,13,4],[38,2,38,4],[39,2,39,4],[40,2,40,4],[41,2,41,4],[9,0,9,1],[9,2,9,4],[10,0,10,1],[10,2,10,4],[12,0,12,1],[12,2,12,4],[11,0,11,1],[11,2,11,4],[48,2,48,4],[49,2,49,4],[50,2,50,4],[51,2,51,4],[52,2,52,4],[53,2,53,4],[42,2,42,4],[43,2,43,4],[44,2,44,4],[45,2,45,4],[46,2,46,4],[47,2,47,4],[60,2,60,4],[61,2,61,4],[62,2,62,4],[63,2,63,4],[64,2,64,4],[65,2,65,4],[54,2,54,4],[55,2,55,4],[56,2,56,4],[57,2,57,4],[58,2,58,4],[59,2,59,4],[72,2,72,4],[73,2,73,4],[74,2,74,4],[75,2,75,4],[76,2,76,4],[77,2,77,4],[66,2,66,4],[67,2,67,4],[68,2,68,4],[69,2,69,4],[70,2,70,4],[71,2,71,4],[84,2,84,4],[85,2,85,4],[86,2,86,4],[87,2,87,4],[88,2,88,4],[89,2,89,4],[78,2,78,4],[79,2,79,4],[80,2,80,4],[81,2,81,4],[82,2,82,4],[83,2,83,4],[96,2,96,4],[97,2,97,4],[98,2,98,4],[99,2,99,4],[100,2,100,4],[101,2,101,4],[90,2,90,4],[91,2,91,4],[92,2,92,4],[93,2,93,4],[94,2,94,4],[95,2,95,4],[108,2,108,4],[109,2,109,4],[110,2,110,4],[111,2,111,4],[112,2,112,4],[113,2,113,4],[102,2,102,4],[103,2,103,4],[104,2,104,4],[105,2,105,4],[106,2,106,4],[107,2,107,4],[120,2,120,4],[121,2,121,4],[122,2,122,4],[123,2,123,4],[124,2,124,4],[125,2,125,4],[114,2,114,4],[115,2,115,4],[116,2,116,4],[117,2,117,4],[118,2,118,4],[119,2,119,4],[132,2,132,4],[133,2,133,4],[134,2,134,4],[135,2,135,4],[136,2,136,4],[137,2,137,4],[126,2,126,4],[127,2,127,4],[128,2,128,4],[129,2,129,4],[130,2,130,4],[131,2,131,4],[144,2,144,4],[145,2,145,4],[146,2,146,4],[138,2,138,4],[139,2,139,4],[140,2,140,4],[141,2,141,4],[142,2,142,4],[143,2,143,4]]}
["01b_Begründung_Justif",null,null,null,{"$f":"'01a_Abstimmbr_Passerelle'!J1","v":"Version 01.02.2024"}]
["01b_Begründung sachlicher Abgrenzungen FIBU-BEBU"]
[]
["Name Leistungserbringer (juristische Einheit)",{"$error":"#N/A"},{"$f":"IF(ISBLANK('01a_Abstimmbr_Passerelle'!D4),\"\",'01a_Abstimmbr_Passerelle'!D4)","v":""}]
["UID (CHE-xxx.xxx.xxx)",{"$error":"#N/A"},{"$f":"IF(ISBLANK('01a_Abstimmbr_Passerelle'!D5),\"\",'01a_Abstimmbr_Passerelle'!D5)","v":""}]
["Mehrere Standorte: ja/nein?",{"$error":"#N/A"},{"$f":"IF(ISBLANK('01a_Abstimmbr_Passerelle'!D6),\"\",'01a_Abstimmbr_Passerelle'!D6)","v":"[bitte wählen]"}]
["BUR-Nummer (wenn 1 Standort)",{"$error":"#N/A"},{"$f":"IF(ISBLANK('01a_Abstimmbr_Passerelle'!D7),\"\",'01a_Abstimmbr_Passerelle'!D7)","v":""}]
["Datenjahr",{"$error":"#N/A"},{"$f":"IF(ISBLANK('01a_Abstimmbr_Passerelle'!D8),\"\",'01a_Abstimmbr_Passerelle'!D8)","v":""}]
["Version ITAR_K",{"$error":"#N/A"},{"$f":"IF(ISBLANK('01a_Abstimmbr_Passerelle'!D9),\"\",'01a_Abstimmbr_Passerelle'!D9)","v":"[bitte wählen]"}]
["Version SwissDRG",{"$error":"#N/A"},{"$f":"IF(ISBLANK('01a_Abstimmbr_Passerelle'!D10),\"\",'01a_Abstimmbr_Passerelle'!D10)","v":"[bitte wählen]"}]
["Version TARPSY Grouper",{"$error":"#N/A"},{"$f":"IF(ISBLANK('01a_Abstimmbr_Passerelle'!D11),\"\",'01a_Abstimmbr_Passerelle'!D11)","v":"[bitte wählen]"}]
["Version ST Reha Grouper",{"$error":"#N/A"},{"$f":"IF(ISBLANK('01a_Abstimmbr_Passerelle'!D12),\"\",'01a_Abstimmbr_Passerelle'!D12)","v":"[bitte wählen]"}]
["Prüfung durch Kanton am [TT.MM.JJJJ]",{"$error":"#N/A"},{"$f":"IF(ISBLANK('01a_Abstimmbr_Passerelle'!D13),\"\",'01a_Abstimmbr_Passerelle'!D13)","v":""}]
["Kontaktperson Kanton (E-Mail)",{"$error":"#N/A"},{"$f":"IF(ISBLANK('01a_Abstimmbr_Passerelle'!D14),\"\",'01a_Abstimmbr_Passerelle'!D14)","v":""}]
["Beschreibung","Sachl. Abgrenzung","Begründet","Unbegründet"]
[]
["30-39 Personalaufwand exkl. Honorare",{"$f":"'01a_Abstimmbr_Passerelle'!E33+'01a_Abstimmbr_Passerelle'!E34+'01a_Abstimmbr_Passerelle'!E37","v":0},{"$f":"SUMIF(A$41:A$148,A17,F$41:F$148)","v":0},{"$f":"B17-C17","v":0},null,{"$f":"A17","v":"30-39 Personalaufwand exkl. Honorare"}]
["38 Honorare (sozialversicherungspflichtig)",{"$f":"'01a_Abstimmbr_Passerelle'!E35+'01a_Abstimmbr_Passerelle'!E36","v":0},0,{"$f":"B18-C18","v":0},null,{"$f":"A18","v":"38 Honorare (sozialversicherungspflichtig)"}]
["40 Medizinischer Bedarf",{"$f":"'01a_Abstimmbr_Passerelle'!E38+'01a_Abstimmbr_Passerelle'!E39","v":0},0,0,null,"40 Medizinischer Bedarf"]
["41-49 Sachaufwand exkl. Anlagenutzungskosten",{"$f":"'01a_Abstimmbr_Passerelle'!E40+'01a_Abstimmbr_Passerelle'!E41+'01a_Abstimmbr_Passerelle'!E42+'01a_Abstimmbr_Passerelle'!E43+'01a_Abstimmbr_Passerelle'!E45+'01a_Abstimmbr_Passerelle'!E48+'01a_Abstimmbr_Passerelle'!E54+'01a_Abstimmbr_Passerelle'!E55+'01a_Abstimmbr_Passerelle'!E56","v":0},0,0,null,"41-49 Sachaufwand exkl. Anlagenutzungskosten"]
["44 Anlagenutzungskosten (VKL)",{"$f":"'01a_Abstimmbr_Passerelle'!E44+'01a_Abstimmbr_Passerelle'!E46+'01a_Abstimmbr_Passerelle'!E47","v":0},0,0,null,"44 Anlagenutzungskosten (VKL)"]
["46 Zinsaufwand",{"$f":"SUM('01a_Abstimmbr_Passerelle'!E49:E53)","v":0},0,0,null,"46 Zinsaufwand"]
["7 a.o. Aufwand",{"$f":"SUM('01a_Abstimmbr_Passerelle'!E57:E60)","v":0},0,{"$f":"B23-C23","v":0},null,"7 a.o. Aufwand"]
[null,null,null,null,null,"-----------------------------------------------------------------------"]
["60 Erträge aus med., pfl. und therap. Leistungen",{"$f":"'01a_Abstimmbr_Passerelle'!E19","v":0},{"$f":"SUMIF(A$41:A$148,A25,F$41:F$148)","v":0},{"$f":"B25-C25","v":0},null,{"$f":"A25","v":"60 Erträge aus med., pfl. und therap. Leistungen"}]
["61 Ärztliche Einzelleistungen",{"$f":"'01a_Abstimmbr_Passerelle'!E20","v":0},0,0,null,"61 Ärztliche Einzelleistungen"]
["62 Übrige Spitaleinzelleistungen ",{"$f":"'01a_Abstimmbr_Passerelle'!E21","v":0},0,0,null,"62 Übrige Spitaleinzelleistungen "]
["65 Übrige Erträge aus Leistungen an Patienten",{"$f":"'01a_Abstimmbr_Passerelle'!E22","v":0},0,0,null,"65 Übrige Erträge aus Leistungen an Patienten"]
["66 Finanzertrag",{"$f":"'01a_Abstimmbr_Passerelle'!E23","v":0},0,0,null,"66 Finanzertrag"]
["67 Bestandesänderungen",{"$f":"'01a_Abstimmbr_Passerelle'!E24","v":0},0,0,null,"67 Bestandesänderungen"]
["68 Erträge aus Leistungen an Personal und Dritte",{"$f":"'01a_Abstimmbr_Passerelle'!E25","v":0},0,0,null,"68 Erträge aus Leistungen an Personal und Dritte"]
["69 Beiträge und Subventionen",{"$f":"'01a_Abstimmbr_Passerelle'!E26","v":0},0,0,null,"69 Beiträge und Subventionen"]
["77 Steuern",{"$f":"'01a_Abstimmbr_Passerelle'!E27","v":0},0,0,null,"77 Steuern"]
["78 Ausserordentlicher Ertrag",{"$f":"'01a_Abstimmbr_Passerelle'!E28","v":0},0,0,null,"78 Ausserordentlicher Ertrag"]
["79 Betriebsfremder Ertrag",{"$f":"'01a_Abstimmbr_Passerelle'!E29","v":0},0,0,null,"79 Betriebsfremder Ertrag"]
[]
["Total",{"$f":"SUM(B17:B35)","v":0},{"$f":"SUM(C17:C35)","v":0},0]
[]
["Kostenartengruppe","Abgrenzungs-\nbetrag","Begründung",{"$error":"#N/A"},{"$error":"#N/A"}]
[]
["46 Zinsaufwand",{"$f":"'01a_Abstimmbr_Passerelle'!E52","v":0},"Kalkulatorischer Zins auf dem Umlaufvermögen nach REKOLE (Kto. 468)",{"$error":"#N/A"},{"$error":"#N/A"},{"$f":"IF(C41=\"\",0,B41)","v":0}]
["44 Anlagenutzungskosten (VKL)",{"$f":"'01a_Abstimmbr_Passerelle'!E47","v":0},"Kalkulatorischer Zins auf dem Anlagevermögen nach VKL (Kto. 448)",{"$error":"#N/A"},{"$error":"#N/A"},{"$f":"IF(C42=\"\",0,B42)","v":0}]
["46 Zinsaufwand",{"$f":"SUM('01a_Abstimmbr_Passerelle'!E49:E51)","v":0},"Abgrenzung tatsächlicher Zinsaufwand",{"$error":"#N/A"},{"$error":"#N/A"},0]
[null,null,null,null,null,0]
[null,null,null,null,null,0]
[null,null,null,null,null,0]
[null,null,null,null,null,0]
[null,null,null,null,null,0]
[null,null,null,null,null,0]
[null,null,null,null,null,0]
[null,null,null,null,null,0]
[null,null,null,null,null,0]
[null,null,null,null,null,0]
[null,null,null,null,null,0]
[null,null,null,null,null,0]
[null,null,null,null,null,0]
[null,null,null,null,null,0]
[null,null,null,null,null,0]
[null,null,null,null,null,0]
[null,null,null,null,null,0]
[null,null,null,null,null,0]
[null,null,null,null,null,0]
[null,null,null,null,null,0]
[null,null,null,null,null,0]
[null,null,null,null,null,0]
[null,null,null,null,null,0]
[null,null,null,null,null,0]
[null,null,null,null,null,0]
[null,null,null,null,null,0]
[null,null,null,null,null,0]
[null,null,null,null,null,0]
[null,null,null,null,null,0]
[null,null,null,null,null,0]
[null,null,null,null,null,0]
[null,null,null,null,null,0]
[null,null,null,null,null,0]
[null,null,null,null,null,0]
[null,null,null,null,null,0]
[null,null,null,null,null,0]
[null,null,null,null,null,0]
[null,null,null,null,null,0]
[null,null,null,null,null,0]
[null,null,null,null,null,0]
[null,null,null,null,null,0]
[null,null,null,null,null,0]
[null,null,null,null,null,0]
[null,null,null,null,null,0]
[null,null,null,null,null,0]
[null,null,null,null,null,0]
[null,null,null,null,null,0]
[null,null,null,null,null,0]
[null,null,null,null,null,0]
[null,null,null,null,null,0]
[null,null,null,null,null,0]
[null,null,null,null,null,0]
[null,null,null,null,null,0]
[null,null,null,null,null,0]
[null,null,null,null,null,0]
[null,null,null,null,null,0]
[null,null,null,null,null,0]
[null,null,null,null,null,0]
[null,null,null,null,null,0]
[null,null,null,null,null,0]
[null,null,null,null,null,0]
[null,null,null,null,null,0]
[null,null,null,null,null,{"$f":"IF(C106=\"\",0,B106)","v":0}]
[null,null,null,null,null,0]
[null,null,null,null,null,0]
[null,null,null,null,null,0]
[null,null,null,null,null,0]
[null,null,null,null,null,0]
[null,null,null,null,null,0]
[null,null,null,null,null,0]
[null,null,null,null,null,0]
[null,null,null,null,null,0]
[null,null,null,null,null,0]
[null,null,null,null,null,0]
[null,null,null,null,null,0]
[null,null,null,null,null,0]
[null,null,null,null,null,0]
[null,null,null,null,null,0]
[null,null,null,null,null,0]
[null,null,null,null,null,0]
[null,null,null,null,null,0]
[null,null,null,null,null,0]
[null,null,null,null,null,0]
[null,null,null,null,null,0]
[null,null,null,null,null,0]
[null,null,null,null,null,0]
[null,null,null,null,null,0]
[null,null,null,null,null,0]
[null,null,null,null,null,0]
[null,null,null,null,null,0]
[null,null,null,null,null,0]
[null,null,null,null,null,0]
[null,null,null,null,null,0]
[null,null,null,null,null,0]
[null,null,null,null,null,0]
[null,null,null,null,null,0]
[null,null,null,null,null,0]
[null,null,null,null,null,0]
[null,null,null,null,null,0]
[null,null,null,null,null,0]
[null,null,null,null,null,0]
[null,null,null,null,null,0]
[null,null,null,null,null,0]
[null,null,null,null,null,0]
[null,null,null,null,null,0]

{"sheet":"dropdown","index":2,"n_rows":4,"n_cols":5,"rows_kept":4,"cut":false,"hidden":true,"merged":[]}
["[bitte wählen]","[bitte wählen]","[bitte wählen]","[bitte wählen]","[bitte wählen]"]
["ITAR_K V14.0","SwissDRG 12.0 Abrechnungsversion (2023/2023)","Ja","TARPSY 4.0 Abrechnungsversion 2 (2023/2023)","ST Reha 1.0 Abrechnungsversion 2 (2023/2023)"]
["ITAR_K V13.0","SwissDRG 11.0 Abrechnungsversion (2022/2022)","Nein","TARPSY 4.0 Abrechnungsversion (2022/2022)","ST Reha 1.0 Abrechnungsversion (2022/2022)"]
["ITAR_K V12.0","SwissDRG 10.0 Abrechnungsversion (2021/2021)","Nicht relevant","TARPSY 3.0 Abrechnungsversion (2021/2021)"]